[Event "Titled Tuesday Blitz February 07 Early 2023"]
[White "Yaran, Siar"]
[Black "Rosh Jain"]
[WhiteFideId "6323006"]
[BlackFideId "25789465"]
[WhiteElo "2288"]
[BlackElo "2248"]
[Result "1-0"]
[Round "01"]
[TimeControl "180+2"]
[Date "2023.02.07"]
[WhiteClock "0:00:05"]
[BlackClock "0:00:01"]

1. d4 {[%clk 0:02:54]}  Nf6 {[%clk 0:02:57]} 2. c4 {[%clk 0:02:55]}  e6 {[%clk 0:02:54]} 3. Nc3 {[%clk 0:02:55]}  d5 {[%clk 0:02:53]} 4. Bg5 {[%clk 0:02:54]}  Be7 {[%clk 0:02:53]} 5. Nf3 {[%clk 0:02:52]}  h6 {[%clk 0:02:52]} 6. Bh4 {[%clk 0:02:47]}  O-O {[%clk 0:02:51]} 7. e3 {[%clk 0:02:44]}  dxc4 {[%clk 0:02:49]} 8. Bxc4 {[%clk 0:02:43]}  a6 {[%clk 0:02:47]} 9. a4 {[%clk 0:02:36]}  b6 {[%clk 0:02:46]} 10. O-O {[%clk 0:02:37]}  Bb7 {[%clk 0:02:46]} 11. Re1 {[%clk 0:02:37]}  c5 {[%clk 0:02:45]} 12. Qe2 {[%clk 0:02:34]}  Nc6 {[%clk 0:02:44]} 13. Rad1 {[%clk 0:02:33]}  cxd4 {[%clk 0:02:39]} 14. exd4 {[%clk 0:02:30]}  Nb4 {[%clk 0:02:34]} 15. Ne5 {[%clk 0:02:16]}  Nfd5 {[%clk 0:02:29]} 16. Bg3 {[%clk 0:02:10]}  Nxc3 {[%clk 0:02:24]} 17. bxc3 {[%clk 0:02:09]}  Nd5 {[%clk 0:02:25]} 18. Qh5 {[%clk 0:01:47]}  Rc8 {[%clk 0:02:18]} 19. Rd3 {[%clk 0:01:15]}  Bf6 {[%clk 0:01:46]} 20. Bb3 {[%clk 0:00:58]}  Nxc3 {[%clk 0:01:36]} 21. Nxf7 {[%clk 0:00:47]}  Rxf7 {[%clk 0:01:35]} 22. Bxe6 {[%clk 0:00:44]}  Qe7 {[%clk 0:01:15]} 23. f3 {[%clk 0:00:20]}  Rd8 {[%clk 0:00:56]} 24. d5 {[%clk 0:00:17]}  Bxd5 {[%clk 0:00:42]} 25. Bxd5 {[%clk 0:00:15]}  Qc5+ {[%clk 0:00:39]} 26. Bf2 {[%clk 0:00:15]}  Rxd5 {[%clk 0:00:33]} 27. Re8+ {[%clk 0:00:13]}  Kh7 {[%clk 0:00:32]} 28. Qxf7 {[%clk 0:00:12]}  Qc6 {[%clk 0:00:14]} 29. Rxd5 {[%clk 0:00:09]}  Nxd5 {[%clk 0:00:14]} 30. g3 {[%clk 0:00:06]}  Qc1+ {[%clk 0:00:13]} 31. Kg2 {[%clk 0:00:06]}  Qg5 {[%clk 0:00:11]} 32. Qg8+ {[%clk 0:00:06]}  Kg6 {[%clk 0:00:11]} 33. Re4 {[%clk 0:00:07]}  h5 {[%clk 0:00:10]} 34. h4 {[%clk 0:00:07]}  Qf5 {[%clk 0:00:09]} 35. g4 {[%clk 0:00:07]}  hxg4 {[%clk 0:00:09]} 36. Rxg4+ {[%clk 0:00:08]}  Kh6 {[%clk 0:00:05]} 37. Qh8+ {[%clk 0:00:08]}  Qh7 {[%clk 0:00:05]} 38. Qxh7+ {[%clk 0:00:08]}  Kxh7 {[%clk 0:00:05]} 39. Rc4 {[%clk 0:00:08]}  b5 {[%clk 0:00:03]} 40. Rc5 {[%clk 0:00:07]}  Nf4+ {[%clk 0:00:02]} 41. Kg3 {[%clk 0:00:07]}  Ne2+ {[%clk 0:00:02]} 42. Kg4 {[%clk 0:00:08]}  bxa4 {[%clk 0:00:03]} 43. Ra5 {[%clk 0:00:08]}  Nc3 {[%clk 0:00:03]} 44. Rxa6 {[%clk 0:00:07]}  Kg6 {[%clk 0:00:03]} 45. Be1 {[%clk 0:00:07]}  Nd5 {[%clk 0:00:02]} 46. Rxa4 {[%clk 0:00:06]}  Ne3+ {[%clk 0:00:02]} 47. Kh3 {[%clk 0:00:07]}  Nc2 {[%clk 0:00:02]} 48. Bf2 {[%clk 0:00:06]}  Kf5 {[%clk 0:00:01]} 49. Kg2 {[%clk 0:00:06]}  g6 {[%clk 0:00:02]} 50. Kf1 {[%clk 0:00:07]}  Na1 {[%clk 0:00:01]} 51. Ke2 {[%clk 0:00:05]}  Nb3 {[%clk 0:00:02]} 52. Kd3 {[%clk 0:00:06]}  Nc1+ {[%clk 0:00:01]} 53. Kd2 {[%clk 0:00:05]}  Nb3+ {[%clk 0:00:01]} 54. Kc2 {[%clk 0:00:06]}  Na1+ {[%clk 0:00:02]} 55. Kb1 {[%clk 0:00:05]}  Nb3 {[%clk 0:00:02]} 56. Be3 {[%clk 0:00:06]}  Bxh4 {[%clk 0:00:01]} 57. Ka2 {[%clk 0:00:05]} 1-0


[Site "https://www.chess.com"]

[Event "Titled Tuesday Blitz February 07 Early 2023"]
[White "Mendez Machado, Andre"]
[Black "Chor, Kevin"]
[WhiteFideId "6603793"]
[BlackFideId "2090740"]
[WhiteElo "1974"]
[BlackElo "1944"]
[Result "1-0"]
[Round "01"]
[TimeControl "180+2"]
[Date "2023.02.07"]
[WhiteClock "0:00:13"]
[BlackClock "0:00:26"]

1. e4 {[%clk 0:02:59]}  c5 {[%clk 0:02:59]} 2. Nc3 {[%clk 0:02:58]}  g6 {[%clk 0:02:59]} 3. d4 {[%clk 0:02:57]}  cxd4 {[%clk 0:02:58]} 4. Qxd4 {[%clk 0:02:57]}  Nf6 {[%clk 0:02:58]} 5. Be3 {[%clk 0:02:57]}  Nc6 {[%clk 0:02:57]} 6. Qd2 {[%clk 0:02:57]}  Bg7 {[%clk 0:02:55]} 7. f3 {[%clk 0:02:57]}  d6 {[%clk 0:02:54]} 8. Nge2 {[%clk 0:02:55]}  O-O {[%clk 0:02:51]} 9. h4 {[%clk 0:02:43]}  h5 {[%clk 0:02:39]} 10. O-O-O {[%clk 0:02:32]}  Ne5 {[%clk 0:02:39]} 11. Nf4 {[%clk 0:02:25]}  Qa5 {[%clk 0:02:36]} 12. Kb1 {[%clk 0:02:21]}  Be6 {[%clk 0:02:34]} 13. Ncd5 {[%clk 0:02:17]}  Qd8 {[%clk 0:02:35]} 14. Nxe6 {[%clk 0:02:06]}  fxe6 {[%clk 0:02:35]} 15. Nf4 {[%clk 0:02:06]}  Qd7 {[%clk 0:02:23]} 16. Bd4 {[%clk 0:02:00]}  Nc6 {[%clk 0:01:26]} 17. Bc4 {[%clk 0:01:20]}  Nxd4 {[%clk 0:01:12]} 18. Qxd4 {[%clk 0:01:17]}  Nd5 {[%clk 0:01:12]} 19. Bxd5 {[%clk 0:01:08]}  Rxf4 {[%clk 0:01:08]} 20. Qe3 {[%clk 0:00:43]}  Be5 {[%clk 0:01:07]} 21. Bb3 {[%clk 0:00:41]}  a5 {[%clk 0:01:07]} 22. g3 {[%clk 0:00:37]}  Rff8 {[%clk 0:00:57]} 23. Qg5 {[%clk 0:00:30]}  Kg7 {[%clk 0:00:53]} 24. Qxe5+ {[%clk 0:00:30]}  Kf7 {[%clk 0:00:46]} 25. Qg5 {[%clk 0:00:24]}  a4 {[%clk 0:00:44]} 26. Bc4 {[%clk 0:00:24]}  b5 {[%clk 0:00:44]} 27. Bd3 {[%clk 0:00:22]}  e5 {[%clk 0:00:41]} 28. f4 {[%clk 0:00:20]}  a3 {[%clk 0:00:37]} 29. fxe5 {[%clk 0:00:20]}  axb2 {[%clk 0:00:33]} 30. Rhf1+ {[%clk 0:00:17]}  Kg7 {[%clk 0:00:33]} 31. exd6 {[%clk 0:00:15]}  Qxd6 {[%clk 0:00:32]} 32. e5 {[%clk 0:00:13]}  Qa3 {[%clk 0:00:26]} 33. Qxg6+ {[%clk 0:00:13]} 1-0


[Site "https://www.chess.com"]

[Event "Titled Tuesday Blitz February 07 Early 2023"]
[White "Chabris, Christopher"]
[Black "Arenas, David"]
[WhiteFideId "2005263"]
[BlackFideId "4403177"]
[WhiteElo "2053"]
[BlackElo "2426"]
[Result "1-0"]
[Round "01"]
[TimeControl "180+2"]
[Date "2023.02.07"]
[WhiteClock "0:00:08"]
[BlackClock "0:00:09"]

1. e4 {[%clk 0:02:59]}  c5 {[%clk 0:02:52]} 2. Nf3 {[%clk 0:02:58]}  d6 {[%clk 0:02:52]} 3. Bb5+ {[%clk 0:02:51]}  Bd7 {[%clk 0:02:51]} 4. Bxd7+ {[%clk 0:02:51]}  Qxd7 {[%clk 0:02:52]} 5. O-O {[%clk 0:02:51]}  Nf6 {[%clk 0:02:52]} 6. Qe2 {[%clk 0:02:52]}  Nc6 {[%clk 0:02:51]} 7. Rd1 {[%clk 0:02:52]}  e6 {[%clk 0:02:51]} 8. c3 {[%clk 0:02:52]}  Be7 {[%clk 0:02:51]} 9. d4 {[%clk 0:02:52]}  cxd4 {[%clk 0:02:52]} 10. cxd4 {[%clk 0:02:52]}  d5 {[%clk 0:02:53]} 11. e5 {[%clk 0:02:52]}  Ne4 {[%clk 0:02:53]} 12. Be3 {[%clk 0:02:50]}  O-O {[%clk 0:02:50]} 13. Nc3 {[%clk 0:02:42]}  Nxc3 {[%clk 0:02:48]} 14. bxc3 {[%clk 0:02:42]}  Na5 {[%clk 0:02:46]} 15. h4 {[%clk 0:02:41]}  h6 {[%clk 0:02:45]} 16. Nh2 {[%clk 0:02:30]}  Bxh4 {[%clk 0:02:39]} 17. Qg4 {[%clk 0:02:21]}  Bd8 {[%clk 0:01:42]} 18. Bxh6 {[%clk 0:02:12]}  f5 {[%clk 0:01:43]} 19. Qg3 {[%clk 0:01:51]}  Rc8 {[%clk 0:01:37]} 20. Rd3 {[%clk 0:01:48]}  Rf7 {[%clk 0:01:26]} 21. Qg6 {[%clk 0:01:32]}  Nc6 {[%clk 0:01:00]} 22. Bg5 {[%clk 0:00:46]}  Bxg5 {[%clk 0:00:53]} 23. Qxg5 {[%clk 0:00:46]}  Qd8 {[%clk 0:00:54]} 24. Qh5 {[%clk 0:00:38]}  Ne7 {[%clk 0:00:50]} 25. Rh3 {[%clk 0:00:33]}  Kf8 {[%clk 0:00:50]} 26. Qh8+ {[%clk 0:00:23]}  Ng8 {[%clk 0:00:50]} 27. Nf3 {[%clk 0:00:10]}  b6 {[%clk 0:00:15]} 28. Nh4 {[%clk 0:00:09]}  Qg5 {[%clk 0:00:11]} 29. Rg3 {[%clk 0:00:08]}  Qh6 {[%clk 0:00:11]} 30. Ng6+ {[%clk 0:00:08]}  Ke8 {[%clk 0:00:10]} 31. Qxg8+ {[%clk 0:00:08]}  Kd7 {[%clk 0:00:09]} 32. Qxf7+ {[%clk 0:00:08]} 1-0


[Site "https://www.chess.com"]

[Event "Titled Tuesday Blitz February 07 Early 2023"]
[White "Lymar, Vladislav"]
[Black "Antonio, Jorge Carlos"]
[WhiteFideId "14162180"]
[BlackFideId "113190"]
[WhiteElo "2119"]
[BlackElo "2277"]
[Result "1-0"]
[Round "01"]
[TimeControl "180+2"]
[Date "2023.02.07"]
[WhiteClock "0:01:02"]
[BlackClock "0:00:39"]

1. e4 {[%clk 0:02:59]}  c5 {[%clk 0:02:59]} 2. Nf3 {[%clk 0:02:59]}  e6 {[%clk 0:03:00]} 3. g3 {[%clk 0:02:59]}  Nc6 {[%clk 0:02:59]} 4. Bg2 {[%clk 0:02:59]}  d6 {[%clk 0:03:00]} 5. O-O {[%clk 0:02:59]}  g6 {[%clk 0:03:00]} 6. d4 {[%clk 0:02:59]}  cxd4 {[%clk 0:02:59]} 7. Nxd4 {[%clk 0:03:00]}  Bg7 {[%clk 0:02:59]} 8. Nb5 {[%clk 0:03:00]}  Bf8 {[%clk 0:02:48]} 9. Bf4 {[%clk 0:02:53]}  e5 {[%clk 0:02:47]} 10. Bg5 {[%clk 0:02:34]}  f6 {[%clk 0:02:46]} 11. Be3 {[%clk 0:02:34]}  a6 {[%clk 0:02:45]} 12. N5c3 {[%clk 0:02:33]}  Be6 {[%clk 0:02:45]} 13. Nd5 {[%clk 0:02:31]}  Bxd5 {[%clk 0:02:37]} 14. Qxd5 {[%clk 0:02:30]}  Nge7 {[%clk 0:02:36]} 15. Qb3 {[%clk 0:02:29]}  Rb8 {[%clk 0:02:13]} 16. Bb6 {[%clk 0:02:24]}  Qd7 {[%clk 0:02:12]} 17. Nc3 {[%clk 0:02:22]}  Nc8 {[%clk 0:02:11]} 18. Nd5 {[%clk 0:02:19]}  Nxb6 {[%clk 0:02:05]} 19. Nxf6+ {[%clk 0:02:19]}  Kd8 {[%clk 0:02:03]} 20. Nxd7 {[%clk 0:02:17]}  Nxd7 {[%clk 0:02:03]} 21. Rad1 {[%clk 0:02:17]}  Nc5 {[%clk 0:02:01]} 22. Qd5 {[%clk 0:02:15]}  Kc7 {[%clk 0:01:55]} 23. c3 {[%clk 0:02:12]}  Be7 {[%clk 0:01:51]} 24. f4 {[%clk 0:02:11]}  Bf6 {[%clk 0:01:48]} 25. Bh3 {[%clk 0:01:52]}  Rhf8 {[%clk 0:01:40]} 26. Qxd6+ {[%clk 0:01:52]}  Kb6 {[%clk 0:01:36]} 27. fxe5 {[%clk 0:01:48]}  Bxe5 {[%clk 0:01:35]} 28. Qxf8 {[%clk 0:01:45]}  Rxf8 {[%clk 0:01:32]} 29. Rxf8 {[%clk 0:01:46]}  Nxe4 {[%clk 0:01:30]} 30. Rf7 {[%clk 0:01:41]}  Ng5 {[%clk 0:01:28]} 31. Be6 {[%clk 0:01:31]}  Nxe6 {[%clk 0:01:24]} 32. Rxh7 {[%clk 0:01:31]}  Ng5 {[%clk 0:01:23]} 33. Rhd7 {[%clk 0:01:20]}  a5 {[%clk 0:01:21]} 34. Kg2 {[%clk 0:01:19]}  a4 {[%clk 0:01:20]} 35. R1d5 {[%clk 0:01:12]}  Ne4 {[%clk 0:01:04]} 36. Rxe5 {[%clk 0:01:03]}  Nxe5 {[%clk 0:01:01]} 37. Re7 {[%clk 0:01:04]}  Nc4 {[%clk 0:00:39]} 38. Rxe4 {[%clk 0:01:02]}  Nxb2 {[%clk 0:00:39]} 39. Rb4+ {[%clk 0:01:02]} 1-0


[Site "https://www.chess.com"]

[Event "Titled Tuesday Blitz February 07 Early 2023"]
[White "Zampronha, Wladimir Camilo"]
[Black "Orzech, Dominik"]
[WhiteFideId "2103087"]
[BlackFideId "1115065"]
[WhiteElo "2176"]
[BlackElo "2308"]
[Result "0-1"]
[Round "01"]
[TimeControl "180+2"]
[Date "2023.02.07"]
[WhiteClock "0:00:02"]
[BlackClock "0:01:20"]

1. e4 {[%clk 0:02:59]}  c6 {[%clk 0:02:56]} 2. d4 {[%clk 0:02:59]}  d5 {[%clk 0:02:57]} 3. e5 {[%clk 0:02:59]}  c5 {[%clk 0:02:56]} 4. Nf3 {[%clk 0:02:59]}  Nc6 {[%clk 0:02:54]} 5. c4 {[%clk 0:02:59]}  cxd4 {[%clk 0:02:50]} 6. Nxd4 {[%clk 0:02:57]}  Nxe5 {[%clk 0:02:49]} 7. cxd5 {[%clk 0:02:53]}  Nf6 {[%clk 0:02:47]} 8. Nc3 {[%clk 0:02:52]}  a6 {[%clk 0:02:35]} 9. Qa4+ {[%clk 0:02:29]}  Bd7 {[%clk 0:02:29]} 10. Qb3 {[%clk 0:02:29]}  b5 {[%clk 0:02:28]} 11. f4 {[%clk 0:02:11]}  Nc4 {[%clk 0:02:20]} 12. Bxc4 {[%clk 0:01:51]}  bxc4 {[%clk 0:02:21]} 13. Qxc4 {[%clk 0:01:52]}  Qb6 {[%clk 0:02:17]} 14. Be3 {[%clk 0:01:47]}  Rc8 {[%clk 0:02:14]} 15. Qe2 {[%clk 0:01:29]}  Ng4 {[%clk 0:02:13]} 16. O-O {[%clk 0:01:25]}  g6 {[%clk 0:02:03]} 17. Kh1 {[%clk 0:00:57]}  Bg7 {[%clk 0:01:48]} 18. Rad1 {[%clk 0:00:56]}  O-O {[%clk 0:01:44]} 19. Bg1 {[%clk 0:00:54]}  Qd6 {[%clk 0:01:38]} 20. Ne6 {[%clk 0:00:40]}  fxe6 {[%clk 0:01:34]} 21. dxe6 {[%clk 0:00:41]}  Qxe6 {[%clk 0:01:32]} 22. Qd2 {[%clk 0:00:22]}  Bc6 {[%clk 0:01:30]} 23. Rfe1 {[%clk 0:00:21]}  Qf5 {[%clk 0:01:24]} 24. Rxe7 {[%clk 0:00:19]}  Qh5 {[%clk 0:01:23]} 25. Rxg7+ {[%clk 0:00:05]}  Kxg7 {[%clk 0:01:21]} 26. Qd4+ {[%clk 0:00:04]}  Kh6 {[%clk 0:01:21]} 27. h3 {[%clk 0:00:02]}  Qxh3+ {[%clk 0:01:20]} 0-1


[Site "https://www.chess.com"]

[Event "Titled Tuesday Blitz February 07 Early 2023"]
[White "Mathieu, Phileas"]
[Black "Zaksaite, Salomeja"]
[WhiteFideId "36048410"]
[BlackFideId "12801496"]
[WhiteElo "2374"]
[BlackElo "2283"]
[Result "1-0"]
[Round "01"]
[TimeControl "180+2"]
[Date "2023.02.07"]
[WhiteClock "0:00:46"]
[BlackClock "0:00:02"]

1. e4 {[%clk 0:02:58]}  c5 {[%clk 0:02:59]} 2. Nf3 {[%clk 0:02:58]}  Nc6 {[%clk 0:02:59]} 3. Bb5 {[%clk 0:02:58]}  e6 {[%clk 0:02:58]} 4. O-O {[%clk 0:02:56]}  Nge7 {[%clk 0:02:58]} 5. Re1 {[%clk 0:02:50]}  a6 {[%clk 0:02:56]} 6. Bf1 {[%clk 0:02:51]}  d5 {[%clk 0:02:56]} 7. exd5 {[%clk 0:02:51]}  Nxd5 {[%clk 0:02:56]} 8. d4 {[%clk 0:02:50]}  Nf6 {[%clk 0:02:56]} 9. Be3 {[%clk 0:02:47]}  cxd4 {[%clk 0:02:56]} 10. Nxd4 {[%clk 0:02:48]}  Bd7 {[%clk 0:02:56]} 11. Nc3 {[%clk 0:02:46]}  Be7 {[%clk 0:02:54]} 12. Rc1 {[%clk 0:02:43]}  O-O {[%clk 0:02:50]} 13. g3 {[%clk 0:02:43]}  Nxd4 {[%clk 0:02:49]} 14. Qxd4 {[%clk 0:02:44]}  Bc6 {[%clk 0:02:48]} 15. Rcd1 {[%clk 0:02:36]}  Qxd4 {[%clk 0:02:46]} 16. Bxd4 {[%clk 0:02:37]}  b5 {[%clk 0:01:47]} 17. Bg2 {[%clk 0:02:31]}  Bxg2 {[%clk 0:01:45]} 18. Kxg2 {[%clk 0:02:32]}  Rac8 {[%clk 0:01:44]} 19. Rd2 {[%clk 0:02:25]}  Bb4 {[%clk 0:01:28]} 20. a3 {[%clk 0:02:25]}  Bxc3 {[%clk 0:01:27]} 21. Bxc3 {[%clk 0:02:26]}  Nd5 {[%clk 0:01:22]} 22. Bd4 {[%clk 0:02:24]}  Rc4 {[%clk 0:01:20]} 23. c3 {[%clk 0:02:23]}  Rfc8 {[%clk 0:01:14]} 24. f4 {[%clk 0:02:07]}  R4c6 {[%clk 0:01:12]} 25. Be5 {[%clk 0:01:55]}  f6 {[%clk 0:01:10]} 26. Bd4 {[%clk 0:01:55]}  Kf7 {[%clk 0:01:11]} 27. Kf3 {[%clk 0:01:55]}  h6 {[%clk 0:01:08]} 28. h4 {[%clk 0:01:54]}  h5 {[%clk 0:00:52]} 29. Bf2 {[%clk 0:01:51]}  Rg8 {[%clk 0:00:37]} 30. f5 {[%clk 0:01:50]}  Rd8 {[%clk 0:00:18]} 31. fxe6+ {[%clk 0:01:45]}  Rxe6 {[%clk 0:00:18]} 32. Red1 {[%clk 0:01:46]}  Red6 {[%clk 0:00:10]} 33. Bc5 {[%clk 0:01:43]}  R6d7 {[%clk 0:00:10]} 34. Bb4 {[%clk 0:01:35]}  Nb6 {[%clk 0:00:07]} 35. Rxd7+ {[%clk 0:01:27]}  Rxd7 {[%clk 0:00:08]} 36. Re1 {[%clk 0:01:23]}  Nc4 {[%clk 0:00:08]} 37. Re2 {[%clk 0:01:15]}  Ne5+ {[%clk 0:00:06]} 38. Ke4 {[%clk 0:01:11]}  Rd1 {[%clk 0:00:05]} 39. Ba5 {[%clk 0:01:07]}  Ke6 {[%clk 0:00:05]} 40. Bc7 {[%clk 0:01:06]}  Rg1 {[%clk 0:00:05]} 41. Kd4 {[%clk 0:00:57]}  Rxg3 {[%clk 0:00:04]} 42. Bxe5 {[%clk 0:00:58]}  fxe5+ {[%clk 0:00:03]} 43. Rxe5+ {[%clk 0:00:59]}  Kf6 {[%clk 0:00:02]} 44. Rxh5 {[%clk 0:00:59]}  Rg2 {[%clk 0:00:03]} 45. b4 {[%clk 0:00:54]}  Ra2 {[%clk 0:00:03]} 46. Rh8 {[%clk 0:00:50]}  Rxa3 {[%clk 0:00:03]} 47. Rf8+ {[%clk 0:00:50]}  Ke7 {[%clk 0:00:03]} 48. Ra8 {[%clk 0:00:48]}  Kf6 {[%clk 0:00:02]} 49. Rf8+ {[%clk 0:00:46]}  Ke7 {[%clk 0:00:02]} 50. Rf3 {[%clk 0:00:46]} 1-0


[Site "https://www.chess.com"]

[Event "Titled Tuesday Blitz February 07 Early 2023"]
[White "Plazuelo Pascual, Juan"]
[Black "Lesbekova, Assel"]
[WhiteFideId "32059566"]
[BlackFideId "13713248"]
[WhiteElo "2449"]
[BlackElo "1772"]
[Result "0-1"]
[Round "01"]
[TimeControl "180+2"]
[Date "2023.02.07"]
[WhiteClock "0:00:01"]
[BlackClock "0:00:49"]

1. e4 {[%clk 0:02:59]}  c5 {[%clk 0:02:59]} 2. Nf3 {[%clk 0:02:58]}  Nc6 {[%clk 0:03:00]} 3. c3 {[%clk 0:02:58]}  d5 {[%clk 0:02:59]} 4. exd5 {[%clk 0:02:58]}  Qxd5 {[%clk 0:02:59]} 5. d4 {[%clk 0:02:59]}  cxd4 {[%clk 0:03:00]} 6. cxd4 {[%clk 0:02:54]}  e5 {[%clk 0:03:00]} 7. Nc3 {[%clk 0:02:51]}  Bb4 {[%clk 0:03:00]} 8. Bd2 {[%clk 0:02:44]}  Bxc3 {[%clk 0:03:00]} 9. Bxc3 {[%clk 0:02:33]}  e4 {[%clk 0:03:01]} 10. Ne5 {[%clk 0:01:55]}  Nxe5 {[%clk 0:03:01]} 11. dxe5 {[%clk 0:01:55]}  Ne7 {[%clk 0:03:02]} 12. Be2 {[%clk 0:01:43]}  O-O {[%clk 0:02:55]} 13. O-O {[%clk 0:01:33]}  Rd8 {[%clk 0:02:50]} 14. Qa4 {[%clk 0:01:30]}  Bd7 {[%clk 0:02:50]} 15. Qa3 {[%clk 0:01:30]}  Nf5 {[%clk 0:02:47]} 16. Rfd1 {[%clk 0:01:28]}  Qe6 {[%clk 0:02:47]} 17. Qa5 {[%clk 0:01:08]}  b6 {[%clk 0:02:42]} 18. Qd5 {[%clk 0:01:06]}  Qxd5 {[%clk 0:02:40]} 19. Rxd5 {[%clk 0:01:07]}  Bc6 {[%clk 0:02:40]} 20. Rxd8+ {[%clk 0:01:04]}  Rxd8 {[%clk 0:02:41]} 21. Rd1 {[%clk 0:00:55]}  Rxd1+ {[%clk 0:02:41]} 22. Bxd1 {[%clk 0:00:56]}  e3 {[%clk 0:02:42]} 23. Bc2 {[%clk 0:00:43]}  exf2+ {[%clk 0:02:36]} 24. Kxf2 {[%clk 0:00:44]}  Ne7 {[%clk 0:02:36]} 25. Bb4 {[%clk 0:00:35]}  Nd5 {[%clk 0:02:35]} 26. Bd6 {[%clk 0:00:36]}  g6 {[%clk 0:02:28]} 27. g3 {[%clk 0:00:35]}  Bd7 {[%clk 0:02:25]} 28. Kf3 {[%clk 0:00:30]}  Be6 {[%clk 0:02:15]} 29. Bb3 {[%clk 0:00:29]}  b5 {[%clk 0:02:02]} 30. Ke4 {[%clk 0:00:21]}  Nb6 {[%clk 0:02:02]} 31. Bxe6 {[%clk 0:00:21]}  fxe6 {[%clk 0:02:03]} 32. Kd4 {[%clk 0:00:22]}  Nc4 {[%clk 0:01:57]} 33. b3 {[%clk 0:00:21]}  Nd2 {[%clk 0:01:57]} 34. Kc5 {[%clk 0:00:21]}  Nf3 {[%clk 0:01:56]} 35. Kxb5 {[%clk 0:00:18]}  Nxh2 {[%clk 0:01:55]} 36. Ka6 {[%clk 0:00:19]}  Nf1 {[%clk 0:01:52]} 37. g4 {[%clk 0:00:19]}  Kf7 {[%clk 0:01:43]} 38. Kxa7 {[%clk 0:00:19]}  h5 {[%clk 0:01:43]} 39. gxh5 {[%clk 0:00:19]}  gxh5 {[%clk 0:01:44]} 40. Bc5 {[%clk 0:00:17]}  h4 {[%clk 0:01:43]} 41. Bg1 {[%clk 0:00:17]}  Nd2 {[%clk 0:01:38]} 42. Bh2 {[%clk 0:00:16]}  Nf3 {[%clk 0:01:37]} 43. Bf4 {[%clk 0:00:16]}  Kg6 {[%clk 0:01:37]} 44. b4 {[%clk 0:00:17]}  Kf5 {[%clk 0:01:37]} 45. b5 {[%clk 0:00:10]}  Kxf4 {[%clk 0:01:36]} 46. b6 {[%clk 0:00:11]}  Nxe5 {[%clk 0:01:32]} 47. b7 {[%clk 0:00:10]}  h3 {[%clk 0:01:24]} 48. Kb6 {[%clk 0:00:10]}  h2 {[%clk 0:01:15]} 49. b8=Q {[%clk 0:00:10]}  h1=Q {[%clk 0:01:12]} 50. Qf8+ {[%clk 0:00:11]}  Ke4 {[%clk 0:01:10]} 51. Qb4+ {[%clk 0:00:10]}  Kf5 {[%clk 0:01:09]} 52. Qf8+ {[%clk 0:00:10]}  Kg5 {[%clk 0:01:06]} 53. Qg7+ {[%clk 0:00:11]}  Ng6 {[%clk 0:01:06]} 54. Kc7 {[%clk 0:00:09]}  Qc1+ {[%clk 0:01:04]} 55. Kd7 {[%clk 0:00:09]}  Qc4 {[%clk 0:01:01]} 56. Qg8 {[%clk 0:00:08]}  Qxa2 {[%clk 0:00:58]} 57. Qd8+ {[%clk 0:00:05]}  Kf5 {[%clk 0:00:54]} 58. Ke8 {[%clk 0:00:04]}  Qa4+ {[%clk 0:00:52]} 59. Kf7 {[%clk 0:00:04]}  Ne5+ {[%clk 0:00:53]} 60. Kf8 {[%clk 0:00:02]}  Qd7 {[%clk 0:00:50]} 61. Qh4 {[%clk 0:00:01]}  Qf7# {[%clk 0:00:49]} 0-1


[Site "https://www.chess.com"]

[Event "Titled Tuesday Blitz February 07 Early 2023"]
[White "Alhadad, Mahmoud"]
[Black "Mohamed Anees M"]
[WhiteFideId "11501863"]
[BlackFideId "35065815"]
[WhiteElo "1840"]
[BlackElo "2315"]
[Result "0-1"]
[Round "01"]
[TimeControl "180+2"]
[Date "2023.02.07"]
[WhiteClock "0:00:03"]
[BlackClock "0:01:54"]

1. e4 {[%clk 0:02:59]}  d6 {[%clk 0:02:56]} 2. d4 {[%clk 0:02:59]}  Nf6 {[%clk 0:02:56]} 3. Nc3 {[%clk 0:02:58]}  g6 {[%clk 0:02:57]} 4. f3 {[%clk 0:02:58]}  Bg7 {[%clk 0:02:57]} 5. Be3 {[%clk 0:02:58]}  O-O {[%clk 0:02:54]} 6. Qd2 {[%clk 0:02:58]}  e5 {[%clk 0:02:49]} 7. d5 {[%clk 0:02:58]}  c6 {[%clk 0:02:49]} 8. Bc4 {[%clk 0:02:55]}  b5 {[%clk 0:02:49]} 9. Bb3 {[%clk 0:02:53]}  b4 {[%clk 0:02:48]} 10. Na4 {[%clk 0:02:51]}  a5 {[%clk 0:02:46]} 11. Rd1 {[%clk 0:02:49]}  cxd5 {[%clk 0:02:43]} 12. Bxd5 {[%clk 0:02:48]}  Nxd5 {[%clk 0:02:42]} 13. Qxd5 {[%clk 0:02:48]}  Ra6 {[%clk 0:02:41]} 14. Ne2 {[%clk 0:02:13]}  Be6 {[%clk 0:02:39]} 15. Qd3 {[%clk 0:01:58]}  Rc6 {[%clk 0:02:35]} 16. O-O {[%clk 0:01:43]}  Qc7 {[%clk 0:02:28]} 17. Rf2 {[%clk 0:00:52]}  Bc4 {[%clk 0:02:21]} 18. Qd2 {[%clk 0:00:51]}  Bb5 {[%clk 0:02:22]} 19. b3 {[%clk 0:00:48]}  Rxc2 {[%clk 0:02:20]} 20. Qxd6 {[%clk 0:00:48]}  Qxd6 {[%clk 0:02:20]} 21. Rxd6 {[%clk 0:00:48]}  Rxe2 {[%clk 0:02:20]} 22. Rxe2 {[%clk 0:00:46]}  Bxe2 {[%clk 0:02:20]} 23. Bb6 {[%clk 0:00:36]}  Rc8 {[%clk 0:02:13]} 24. Bxa5 {[%clk 0:00:36]}  Bf8 {[%clk 0:02:10]} 25. Rb6 {[%clk 0:00:32]}  Nc6 {[%clk 0:02:09]} 26. Rb7 {[%clk 0:00:04]}  Nxa5 {[%clk 0:02:07]} 27. Ra7 {[%clk 0:00:05]}  Nc6 {[%clk 0:02:03]} 28. Kf2 {[%clk 0:00:05]}  Bb5 {[%clk 0:02:02]} 29. Rd7 {[%clk 0:00:02]}  Nd4 {[%clk 0:02:01]} 30. Rd5 {[%clk 0:00:02]}  Bxa4 {[%clk 0:01:59]} 31. bxa4 {[%clk 0:00:03]}  Rc2+ {[%clk 0:01:59]} 32. Kg3 {[%clk 0:00:04]}  Rxa2 {[%clk 0:01:59]} 33. h4 {[%clk 0:00:03]}  b3 {[%clk 0:01:58]} 34. h5 {[%clk 0:00:03]}  b2 {[%clk 0:01:58]} 35. hxg6 {[%clk 0:00:02]}  hxg6 {[%clk 0:01:56]} 36. Kg4 {[%clk 0:00:02]}  b1=Q {[%clk 0:01:56]} 37. Rxe5 {[%clk 0:00:03]}  Rxg2+ {[%clk 0:01:54]} 38. Kf4 {[%clk 0:00:03]}  Qc1# {[%clk 0:01:54]} 0-1


[Site "https://www.chess.com"]